lending/lending_fUSD_20251125
["ID","MTS","AMOUNT","RATE_DAILY","PERIOD"]
[394873774,1764045071911,-563.12399194,0.0003863,8]
[394873775,1764045071921,-500.0,0.0003863,8]
[394873776,1764045071930,-572.00966361,0.0003863,8]
[394873777,1764045071940,-193.62804303,0.0003863,8]
[394873778,1764045071950,-500.0,0.0003863,8]
[394873779,1764045071960,-209.65937453,0.0003863,8]
[394873780,1764045071969,-500.0,0.0003863,8]
[394873781,1764045071978,-500.0,0.0003863,8]
[394873782,1764045071988,-500.0,0.0003863,8]
[394873783,1764045071997,-500.0,0.0003863,2]
[394873784,1764045072007,-500.0,0.0003863,8]
[394873785,1764045072016,-515.320627,0.0003863,8]
[394873786,1764045072027,-500.0,0.0003863,8]
[394873787,1764045072036,-594.96575762,0.0003863,8]
[394873788,1764045072046,-500.0,0.0003863,8]
[394873789,1764045072055,-506.80504706,0.0003863,8]
[394873790,1764045072065,-500.0,0.0003863,8]
[394873791,1764045072074,-609.96544202,0.0003863,8]
[394873792,1764045072084,-500.0,0.0003863,8]
[394873793,1764045072094,-586.79943067,0.0003863,8]
[394873794,1764045072103,-500.0,0.0003863,8]
[394873795,1764045072114,-562.23788568,0.0003863,8]
[394873796,1764045072125,-500.0,0.0003863,8]
[394873797,1764045072136,-500.0,0.0003863,8]
[394873798,1764045072146,-500.0,0.0003863,8]
[394873799,1764045072156,-629.35465272,0.0003863,8]
[394873800,1764045072167,-502.77916133,0.0003863,8]
[394873801,1764045072177,-500.0,0.0003863,8]
[394873802,1764045072196,-500.0,0.0003863,8]
[394873803,1764045072224,-547.69439911,0.0003863,8]
[394873804,1764045072245,-500.0,0.0003863,8]
[394873805,1764045072266,-514.31636867,0.0003863,8]
[394873806,1764045072286,-500.0,0.0003863,8]
[394873807,1764045072305,-500.0,0.0003863,8]
[394873808,1764045072327,-500.0,0.0003863,8]
[394873809,1764045072347,-500.0,0.0003863,8]
[394873810,1764045072367,-560.52015813,0.0003863,8]
[394873811,1764045072385,-500.0,0.0003863,8]
[394873812,1764045072414,-570.61256285,0.0003863,8]
[394873813,1764045072435,-500.0,0.0003863,8]
[394873814,1764045072450,-500.0,0.0003863,8]
[394873815,1764045072467,-464.87516518,0.0003863,8]
[394873816,1764045072481,-500.0,0.0003863,8]
[394873817,1764045072498,-500.0,0.0003863,8]
[394873818,1764045072515,-500.0,0.0003863,8]
[394873819,1764045072535,-500.0,0.0003863,8]
[394873820,1764045072551,-500.0,0.0003863,8]
[394873821,1764045072568,-524.44745255,0.0003863,8]
[394873822,1764045072583,-495.9,0.0003863,8]
[394873823,1764045072599,-500.0,0.0003863,8]
[394873824,1764045072614,-519.87517397,0.0003863,8]
[394873825,1764045072632,-500.0,0.0003863,8]
[394873826,1764045072647,-500.0,0.0003863,8]
[394873827,1764045072663,-500.0,0.0003863,8]
[394873828,1764045072678,-544.42695484,0.0003863,8]
[394873829,1764045072693,-233.37365369,0.0003863,8]
[394873830,1764045072707,-500.0,0.0003863,8]
[394873831,1764045072722,-500.0,0.0003863,8]
[394873832,1764045072741,-578.05496179,0.0003863,8]
[394873833,1764045072758,-500.0,0.0003863,8]
[394873834,1764045072775,-500.0,0.0003863,8]
[394873835,1764045072790,-500.0,0.0003863,8]
[394873836,1764045072807,-500.0,0.0003863,8]
[394873837,1764045072822,-500.0,0.0003863,8]
[394873838,1764045072837,-500.0,0.0003863,8]
[394873839,1764045072852,-500.0,0.0003863,8]
[394873840,1764045072867,-566.94304172,0.0003863,8]
[394873841,1764045072881,-500.0,0.0003863,8]
[394873842,1764045072895,-500.0,0.0003863,8]
[394873843,1764045072910,-500.0,0.0003863,8]
[394873844,1764045072924,-167.25191152,0.0003863,8]
[394873845,1764045072939,-500.0,0.0003863,8]
[394873846,1764045072955,-573.64802707,0.0003863,8]
[394873847,1764045072972,-500.0,0.0003863,8]
[394873848,1764045072988,-500.0,0.0003863,8]
[394873849,1764045073002,-500.0,0.0003863,8]
[394873850,1764045073017,-500.0,0.0003863,8]
[394873851,1764045073033,-500.0,0.0003863,8]
[394873852,1764045073049,-500.0,0.0003863,8]
[394873853,1764045073064,-500.0,0.0003863,8]
[394873854,1764045073079,-500.0,0.0003863,8]
[394873855,1764045073097,-500.0,0.0003863,8]
[394873856,1764045073113,-500.0,0.0003863,8]
[394873857,1764045073129,-496.63797768,0.0003863,8]
[394873858,1764045073146,-500.0,0.0003863,8]
[394873859,1764045073164,-500.0,0.0003863,8]
[394873860,1764045073176,-500.0,0.0003863,8]
[394873861,1764045073187,-551.68331614,0.0003863,8]
[394873863,1764045073196,-508.68394951,0.0003863,8]
[394873864,1764045073207,-564.2451612,0.0003863,8]
[394873865,1764045073216,-500.0,0.0003863,8]
[394873866,1764045073225,-500.0,0.0003863,8]
[394873867,1764045073393,-505.51894832,0.0003863,8]
[394873868,1764045073403,-500.0,0.0003863,8]
[394873869,1764045073417,-500.0,0.0003863,8]
[394873870,1764045073427,-458.25376088,0.0003863,8]
[394873871,1764045073437,-500.0,0.0003863,8]
[394873872,1764045073447,-500.0,0.0003863,8]
[394873873,1764045073457,-500.0,0.0003863,8]
[394873874,1764045073468,-500.0,0.0003863,8]
[394873875,1764045073478,-500.0,0.0003863,8]
[394873876,1764045073488,-500.0,0.0003863,8]
[394873877,1764045073497,-579.66557785,0.0003863,8]
[394873878,1764045073507,-268.40189815,0.0003863,8]
[394873879,1764045073518,-500.0,0.0003863,8]
[394873880,1764045073527,-500.0,0.0003863,8]
[394873881,1764045073536,-500.0,0.0003863,8]
[394873882,1764045073547,-500.0,0.0003863,8]
[394873883,1764045073557,-500.0,0.0003863,8]
[394873884,1764045073566,-511.78066871,0.0003863,8]
[394873885,1764045073575,-500.0,0.0003863,8]
[394873886,1764045073584,-500.0,0.0003863,8]
[394873887,1764045073593,-500.0,0.0003863,8]
[394873888,1764045073603,-500.0,0.0003863,8]
[394873889,1764045073613,-353.48103413,0.0003863,2]
[394873890,1764045073622,-500.0,0.0003863,8]
[394873891,1764045073632,-500.0,0.0003863,8]
[394873892,1764045073641,-500.0,0.0003863,8]
[394873893,1764045073651,-500.92353556,0.0003863,8]
[394873894,1764045073659,-510.03384697,0.0003863,8]
[394873895,1764045073669,-500.0,0.0003863,8]
[394873896,1764045073679,-500.0,0.0003863,8]
[394873897,1764045073687,-500.0,0.0003863,8]
[394873898,1764045073697,-500.0,0.0003863,8]
[394873899,1764045073705,-500.0,0.0003863,8]
[394873900,1764045073715,-500.0,0.0003863,8]
[394873901,1764045073724,-500.0,0.0003863,8]
[394873902,1764045073733,-500.0,0.0003863,8]
[394873903,1764045073742,-500.0,0.0003863,8]
[394873904,1764045073752,-500.0,0.0003863,8]
[394873905,1764045073761,-500.0,0.0003863,8]
[394873906,1764045073770,-500.0,0.0003863,8]
[394873907,1764045073779,-500.0,0.0003863,8]
[394873908,1764045073788,-603.64872209,0.0003863,8]
[394873909,1764045073797,-510.84057237,0.0003863,8]
[394873910,1764045073810,-500.0,0.0003863,8]
[394873911,1764045073819,-500.0,0.0003863,8]
[394873912,1764045073828,-500.0,0.0003863,8]
[394873913,1764045073838,-500.0,0.0003863,8]
[394873914,1764045073847,-500.0,0.0003863,8]
[394873915,1764045073856,-500.0,0.0003863,8]
[394873916,1764045073866,-500.0,0.0003863,8]
[394873917,1764045073878,-500.0,0.0003863,2]
[394873918,1764045073888,-500.0,0.0003863,8]
[394873919,1764045073898,-500.0,0.0003863,8]
[394873920,1764045073908,-620.96656467,0.0003863,8]
[394873921,1764045073917,-500.0,0.0003863,8]
[394873922,1764045073926,-500.0,0.0003863,8]
[394873923,1764045073936,-500.0,0.0003863,8]
[394873924,1764045073945,-500.0,0.0003863,8]
[394873925,1764045073954,-500.0,0.0003863,8]
[394873926,1764045073964,-500.0,0.0003863,8]
[394873927,1764045073973,-500.0,0.0003863,8]
[394873928,1764045073983,-500.0,0.0003863,8]
[394873929,1764045073991,-508.1079409,0.0003863,8]
[394873930,1764045074002,-500.0,0.0003863,8]
[394873931,1764045074011,-570.01637349,0.0003863,8]
[394873932,1764045074020,-567.88699102,0.0003863,8]
[394873933,1764045074030,-500.0,0.0003863,8]
[394873934,1764045074039,-500.0,0.0003863,8]
[394873935,1764045074049,-396.09734857,0.0003863,8]
[394873936,1764045074059,-150.0,0.00038644,7]
[394873937,1764045074068,-150.0,0.00038709,7]
[394873938,1764045074078,-3888.03696651,0.000388,14]
[394873939,1764045074088,-4627.56,0.000388,14]
[394873940,1764045074097,-150.0,0.000388,7]
[394873941,1764045074109,-8404.48161294,0.00038804,2]
[394873942,1764045074118,-1263.178,0.00038832,52]
[394873943,1764045074129,-378.05825053,0.000389,31]
[394873944,1764045074139,-579.53873987,0.00038904,8]
[394873945,1764045074149,-502.75430339,0.00038904,8]
[394873946,1764045074159,-205.09694772,0.00038904,8]
[394873947,1764045074170,-500.0,0.00038904,8]
[394873948,1764045074179,-502.45504212,0.00038904,2]
[394873949,1764045074190,-500.0,0.00038904,8]
[394873950,1764045074200,-510.99831985,0.00038904,8]
[394873951,1764045074210,-635.61288793,0.00038904,8]
[394873952,1764045074219,-500.0,0.00038904,8]
[394873953,1764045074229,-500.0,0.00038904,8]
[394873954,1764045074239,-517.6052059,0.00038904,8]
[394873955,1764045074249,-500.0,0.00038904,8]
[394873956,1764045074258,-500.0,0.00038904,8]
[394873957,1764045074268,-510.58191153,0.00038904,8]
[394873958,1764045074277,-521.47238384,0.00038904,8]
[394873959,1764045074287,-598.4670988,0.00038904,8]
[394873960,1764045074298,-500.0,0.00038904,8]
[394873961,1764045074307,-506.88214091,0.00038904,8]
[394873962,1764045074315,-500.0,0.00038904,8]
[394873963,1764045074325,-515.24308787,0.00038904,8]
[394873964,1764045074334,-500.0,0.00038904,8]
[394873965,1764045074344,-360.73446254,0.00038904,8]
[394873966,1764045074354,-512.45676867,0.00038904,8]
[394873967,1764045074364,-500.0,0.00038904,8]
[394873968,1764045074373,-500.0,0.00038904,8]
[394873969,1764045074384,-500.0,0.00038904,8]
[394873970,1764045074394,-500.0,0.00038904,8]
[394873971,1764045074403,-500.0,0.00038904,8]
[394873972,1764045074412,-500.0,0.00038904,8]
[394873973,1764045074421,-500.0,0.00038904,8]
[394873974,1764045074431,-500.0,0.00038904,8]
[394873975,1764045074440,-500.0,0.00038904,8]
[394873976,1764045074450,-500.0,0.00038904,8]
[394873977,1764045074459,-500.0,0.00038904,8]
[394873978,1764045074468,-469.52777505,0.00038904,8]
[394873979,1764045074477,-500.0,0.00038904,8]
[394873980,1764045074487,-500.0,0.00038904,8]
[394873981,1764045074496,-183.7220546,0.00038904,8]
[394873982,1764045074507,-500.0,0.00038904,8]
[394873983,1764045074518,-500.0,0.00038904,8]
[394873984,1764045074528,-500.0,0.00038904,8]
[394873985,1764045074537,-500.0,0.00038904,8]
[394873986,1764045074546,-500.0,0.00038904,8]
[394873987,1764045074555,-500.0,0.00038904,8]
[394873988,1764045074564,-500.0,0.00038904,8]
[394873989,1764045074581,-500.0,0.00038904,8]
[394873990,1764045074593,-500.0,0.00038904,8]
[394873991,1764045074602,-500.0,0.00038904,8]
[394873992,1764045074612,-506.99955193,0.00038904,8]
[394873993,1764045074621,-500.0,0.00038904,8]
[394873994,1764045074631,-1018.15221993,0.00038904,8]
[394873995,1764045074641,-500.0,0.00038904,8]
[394873996,1764045074651,-500.0,0.00038904,8]
[394873997,1764045074660,-500.0,0.00038904,8]
[394873998,1764045074670,-285.58167776,0.00038904,8]
[394873999,1764045074680,-500.0,0.00038904,8]
[394874000,1764045074691,-500.0,0.00038904,8]
[394874001,1764045074700,-377.1948308,0.00038904,8]
[394874002,1764045074710,-471.03702368,0.00038904,8]
[394874003,1764045074720,-330.65560392,0.00038904,8]
[394874004,1764045074731,-352.06368815,0.00038904,8]
[394874005,1764045074741,-472.46010949,0.00038904,8]
[394874006,1764045074750,-326.98076286,0.00038904,8]
[394874007,1764045074760,-359.49966892,0.00038904,8]
[394874008,1764045074769,-154.63496666,0.00038904,8]
[394874009,1764045074780,-305.93269438,0.00038904,8]
[394874010,1764045074789,-500.0,0.00038904,8]
[394874011,1764045074800,-500.0,0.00038904,8]
[394874012,1764045074809,-500.0,0.00038904,8]
[394874013,1764045074819,-508.92271064,0.00038904,8]
[394874014,1764045074828,-564.69042381,0.00038904,8]
[394874015,1764045074837,-538.51603486,0.00038904,8]
[394874016,1764045074847,-500.0,0.00038904,8]
[394874017,1764045074856,-500.0,0.00038904,8]
[394874018,1764045074866,-267.45888371,0.00038904,8]
[394874019,1764045074875,-514.82180493,0.00038904,8]
[394874020,1764045074884,-519.46,0.00038904,8]
[394874021,1764045074895,-386.76947773,0.00038904,8]
[394874022,1764045074906,-320.40689349,0.00038904,8]
[394874023,1764045074915,-221.66442945,0.00038904,8]
[394874024,1764045074926,-502.23074101,0.00038904,8]
[394874025,1764045074935,-500.0,0.00038904,8]
[394874026,1764045074944,-500.0,0.00038904,8]
[394874027,1764045074954,-500.0,0.00038904,8]
[394874028,1764045074963,-500.0,0.00038904,8]
[394874029,1764045074973,-500.0,0.00038904,8]
[394874030,1764045074982,-500.0,0.00038904,8]
[394874031,1764045074992,-500.0,0.00038904,8]
[394874032,1764045075001,-175.07256203,0.00038904,8]
[394874033,1764045075011,-500.0,0.00038904,8]
[394874034,1764045075023,-500.0,0.00038904,8]
[394874035,1764045075032,-525.65198067,0.00038904,8]
[394874036,1764045075042,-549.23401977,0.00038904,8]
[394874037,1764045075052,-500.0,0.00038904,8]
[394874038,1764045075062,-211.0823613,0.00038904,8]
[394874039,1764045075071,-500.0,0.00038904,8]
[394874040,1764045075081,-500.0,0.00038904,8]
[394874041,1764045075092,-500.0,0.00038904,8]
[394874042,1764045075101,-500.0,0.00038904,8]
[394874043,1764045075114,-500.0,0.00038904,8]
[394874044,1764045075132,-505.5845006,0.00038904,8]
[394874045,1764045075142,-241.23721859,0.00038904,8]
[394874046,1764045075152,-327.76837968,0.00038904,8]
[394874047,1764045075163,-500.0,0.00038904,8]
[394874048,1764045075173,-500.0,0.00038904,8]
[394874049,1764045075183,-281.55288988,0.00038904,2]
[394874050,1764045075195,-536.2933128,0.00038904,8]
[394874051,1764045075206,-500.0,0.00038904,8]
[394874052,1764045075216,-189.91829055,0.00038904,8]
[394874053,1764045075226,-500.0,0.00038904,8]
[394874054,1764045075236,-500.0,0.00038904,8]
[394874055,1764045075245,-500.0,0.00038904,8]
[394874056,1764045075255,-575.64,0.00038904,8]
[394874057,1764045075265,-507.10701631,0.00038904,8]
[394874058,1764045075274,-500.0,0.00038904,8]
[394874059,1764045075284,-626.95662542,0.00038904,8]
[394874060,1764045075294,-500.0,0.00038904,8]
[394874061,1764045075304,-515.05253788,0.00038904,8]
[394874062,1764045075314,-500.0,0.00038904,8]
[394874063,1764045075324,-548.45313963,0.00038904,8]
[394874064,1764045075334,-500.0,0.00038904,8]
[394874065,1764045075343,-500.0,0.00038904,8]
[394874066,1764045075353,-500.0,0.00038904,8]
[394874067,1764045075363,-516.95646071,0.00038904,8]
[394874068,1764045075373,-257.4323925,0.00038904,8]
[394874069,1764045075384,-500.0,0.00038904,8]
[394874070,1764045075393,-506.39810803,0.00038904,8]
[394874071,1764045075404,-541.93930546,0.00038904,8]
[394874072,1764045075416,-500.0,0.00038904,8]
[394874073,1764045075426,-557.90932609,0.00038904,8]
[394874074,1764045075437,-500.0,0.00038904,8]
[394874075,1764045075446,-500.0,0.00038904,8]
[394874076,1764045075457,-526.76475856,0.00038904,8]
[394874077,1764045075466,-500.0,0.00038904,8]
[394874078,1764045075476,-500.0,0.00038904,8]
[394874079,1764045075486,-368.82938221,0.00038904,8]
[394874080,1764045075496,-560.87840238,0.00038904,8]
[394874081,1764045075505,-500.0,0.00038904,8]
[394874082,1764045075516,-508.07890841,0.00038904,8]
[394874083,1764045075529,-530.78145516,0.00038904,8]
[394874084,1764045075539,-500.0,0.00038904,8]
[394874085,1764045075549,-514.88942353,0.00038904,8]
[394874086,1764045075558,-454.95846462,0.00038904,8]
[394874087,1764045075568,-501.47395323,0.00038904,8]
[394874088,1764045075579,-208.21210802,0.00038904,8]
[394874089,1764045075589,-500.0,0.00038904,8]
[394874090,1764045075599,-500.0,0.00038904,8]
[394874091,1764045075609,-545.03073955,0.00038904,8]
[394874092,1764045075619,-603.77758963,0.00038904,8]
[394874093,1764045075629,-500.0,0.00038904,8]
[394874094,1764045075639,-500.0,0.00038904,8]
[394874095,1764045075648,-502.3687084,0.00038904,8]
[394874096,1764045075658,-500.0,0.00038904,120]
[394874097,1764045075818,-525.38562658,0.00038904,8]
[394874098,1764045075828,-500.0,0.00038904,8]
[394874099,1764045075838,-500.0,0.00038904,8]
[394874100,1764045075851,-500.0,0.00038904,8]
[394874101,1764045075861,-518.72324823,0.00038904,8]
[394874102,1764045075872,-500.0,0.00038904,8]
[394874103,1764045075883,-507.09497449,0.00038904,8]
[394874104,1764045075892,-500.0,0.00038904,8]
[394874105,1764045075902,-549.32495608,0.00038904,8]
[394874106,1764045075911,-567.53599526,0.00038904,8]
[394874107,1764045075925,-537.06027522,0.00038904,8]
[394874108,1764045075935,-500.0,0.00038904,8]
[394874109,1764045075944,-509.82888774,0.00038904,8]
[394874110,1764045075953,-519.67760627,0.00038904,8]
[394874111,1764045075963,-500.0,0.00038904,8]
[394874112,1764045075974,-512.12883164,0.00038904,8]
[394874113,1764045075983,-500.0,0.00038904,8]
[394874114,1764045075992,-500.0,0.00038904,8]
[394874115,1764045076001,-500.0,0.00038904,8]
[394874116,1764045076010,-542.87544226,0.00038904,8]
[394874117,1764045076019,-500.0,0.00038904,8]
[394874118,1764045076029,-500.0,0.00038904,8]
[394874119,1764045076039,-517.15048436,0.00038904,8]
[394874120,1764045076050,-500.0,0.00038904,8]
[394874121,1764045076060,-500.0,0.00038904,8]
[394874122,1764045076069,-526.7551315,0.00038904,8]
[394874123,1764045076079,-532.76847223,0.00038904,8]
[394874124,1764045076088,-641.37681437,0.00038904,8]
[394874125,1764045076097,-500.0,0.00038904,8]
[394874126,1764045076107,-534.9051644,0.00038904,8]
[394874127,1764045076116,-500.0,0.00038904,8]
[394874128,1764045076128,-500.0,0.00038904,2]
[394874129,1764045076138,-500.0,0.00038904,8]
[394874130,1764045076148,-541.21602069,0.00038904,8]
[394874131,1764045076157,-500.0,0.00038904,8]
[394874132,1764045076167,-500.0,0.00038904,8]
[394874133,1764045076176,-500.0,0.00038904,8]
[394874134,1764045076185,-510.09773888,0.00038904,8]
[394874135,1764045076195,-500.0,0.00038904,8]
[394874136,1764045076206,-500.0,0.00038904,8]
[394874137,1764045076215,-544.84534871,0.00038904,8]
[394874138,1764045076224,-500.0,0.00038904,8]
[394874139,1764045076234,-500.0,0.00038904,8]
[394874140,1764045076243,-608.69339483,0.00038904,8]
[394874141,1764045076252,-505.31676739,0.00038904,8]
[394874142,1764045076262,-500.0,0.00038904,8]
[394874143,1764045076271,-500.0,0.00038904,8]
[394874144,1764045076280,-500.0,0.00038904,8]
[394874145,1764045076289,-500.0,0.00038904,8]
[394874146,1764045076299,-515.80174595,0.00038904,8]
[394874147,1764045076308,-1000.0,0.00038904,8]
[394874148,1764045076317,-500.0,0.00038904,8]
[394874149,1764045076326,-500.0,0.00038904,8]
[394874150,1764045076336,-500.0,0.00038904,8]
[394874151,1764045076345,-515.4897953,0.00038904,8]
[394874152,1764045076354,-500.0,0.00038904,8]
[394874153,1764045076363,-507.02200408,0.00038904,8]
[394874154,1764045076372,-535.52417052,0.00038904,8]
[394874155,1764045076382,-500.0,0.00038904,8]
[394874156,1764045076391,-500.0,0.00038904,8]
[394874157,1764045076401,-301.13935985,0.00038904,2]
[394874158,1764045076410,-222.58891941,0.00038904,8]
[394874159,1764045076419,-500.0,0.00038904,8]
[394874160,1764045076429,-535.53460596,0.00038904,8]
[394874161,1764045076438,-592.15838376,0.00038904,8]
[394874162,1764045076448,-500.0,0.00038904,8]
[394874163,1764045076457,-508.72459684,0.00038904,8]
[394874164,1764045076466,-500.0,0.00038904,8]
[394874165,1764045076475,-502.5635625,0.00038904,8]
[394874166,1764045076485,-502.81817515,0.00038904,8]
[394874167,1764045076495,-500.0,0.00038904,8]
[394874168,1764045076504,-500.0,0.00038904,8]
[394874169,1764045076513,-510.39264277,0.00038904,8]
[394874170,1764045076523,-500.0,0.00038904,8]
[394874171,1764045076532,-500.0,0.00038904,8]
[394874172,1764045076541,-157.45058822,0.00038904,8]
[394874173,1764045076551,-500.0,0.00038904,120]
[394874174,1764045076560,-506.6897615,0.00038904,8]
[394874175,1764045076570,-500.0,0.00038904,8]
[394874176,1764045076579,-500.0,0.00038904,8]
[394874177,1764045076589,-500.0,0.00038904,8]
[394874178,1764045076598,-413.60008669,0.00038904,8]
[394874179,1764045076607,-500.0,0.00038904,8]
[394874180,1764045076617,-505.72443022,0.00038904,8]
[394874181,1764045076626,-500.0,0.00038904,8]
[394874182,1764045076638,-173.59654532,0.00038904,8]
[394874183,1764045076648,-500.0,0.00038904,8]
[394874184,1764045076659,-500.0,0.00038904,8]
[394874185,1764045076668,-500.0,0.00038904,8]
[394874186,1764045076678,-500.0,0.00038904,8]
[394874187,1764045076687,-577.49018549,0.00038904,8]
[394874188,1764045076696,-500.0,0.00038904,8]
[394874189,1764045076706,-260.79387939,0.00038904,8]
[394874190,1764045076715,-500.0,0.00038904,8]
[394874191,1764045076724,-513.22,0.00038904,8]
[394874192,1764045076734,-502.49641195,0.00038904,8]
[394874193,1764045076743,-500.0,0.00038904,8]
[394874194,1764045076752,-500.0,0.00038904,8]
[394874195,1764045076761,-500.0,0.00038904,8]
[394874196,1764045076771,-500.0,0.00038904,8]
[394874197,1764045076780,-500.0,0.00038904,8]
[394874198,1764045076789,-344.10368482,0.00038904,8]
[394874199,1764045076799,-500.0,0.00038904,8]
[394874200,1764045076809,-500.0,0.00038904,8]
[394874201,1764045076819,-500.0,0.00038904,8]
[394874202,1764045076829,-568.92953635,0.00038904,8]
[394874203,1764045076840,-500.0,0.00038904,8]
[394874204,1764045076849,-500.0,0.00038904,8]
[394874205,1764045076858,-500.0,0.00038904,8]
[394874206,1764045076867,-573.35862677,0.00038904,8]
[394874207,1764045076876,-500.0,0.00038904,8]
[394874208,1764045076885,-500.0,0.00038904,8]
[394874209,1764045076895,-500.0,0.00038904,8]
[394874210,1764045076904,-687.91,0.00038904,8]
[394874211,1764045076914,-500.0,0.00038904,8]
[394874212,1764045076923,-500.0,0.00038904,8]
[394874213,1764045076932,-580.31911097,0.00038904,8]
[394874214,1764045076942,-500.0,0.00038904,8]
[394874215,1764045076952,-500.0,0.00038904,8]
[394874216,1764045076961,-500.0,0.00038904,8]
[394874217,1764045076972,-500.0,0.00038904,8]
[394874218,1764045076982,-500.0,0.00038904,8]
[394874219,1764045076991,-500.0,0.00038904,8]
[394874220,1764045077004,-500.0,0.00038904,8]
[394874221,1764045077013,-500.0,0.00038904,8]
[394874222,1764045077023,-500.0,0.00038904,8]
[394874223,1764045077032,-500.0,0.00038904,8]
[394874224,1764045077041,-505.4342188,0.00038904,8]
[394874225,1764045077050,-605.15128239,0.00038904,8]
[394874226,1764045077059,-500.0,0.00038904,8]
[394874227,1764045077068,-500.0,0.00038904,8]
[394874228,1764045077077,-500.0,0.00038904,2]
[394874229,1764045077086,-500.0,0.00038904,8]
[394874230,1764045077095,-537.08025953,0.00038904,8]
[394874231,1764045077104,-500.0,0.00038904,8]
[394874232,1764045077116,-500.0,0.00038904,8]
[394874233,1764045077125,-500.0,0.00038904,8]
[394874234,1764045077134,-500.0,0.00038904,8]
[394874235,1764045077144,-202.40779815,0.00038904,8]
[394874236,1764045077154,-500.0,0.00038904,8]
[394874237,1764045077164,-500.0,0.00038904,8]
[394874238,1764045077172,-155.93530733,0.00038904,8]
[394874239,1764045077181,-500.0,0.00038904,8]
[394874240,1764045077191,-559.33632936,0.00038904,8]
[394874241,1764045077200,-504.0291459,0.00038904,8]
[394874242,1764045077213,-563.913919,0.00038904,8]
[394874243,1764045077222,-500.0,0.00038904,8]
[394874244,1764045077231,-639.89053653,0.00038904,8]
[394874245,1764045077240,-500.0,0.00038904,8]
[394874246,1764045077249,-500.0,0.00038904,8]
[394874247,1764045077258,-500.0,0.00038904,8]
[394874248,1764045077268,-500.0,0.00038904,8]
[394874249,1764045077277,-500.0,0.00038904,8]
[394874250,1764045077286,-534.62359303,0.00038904,8]
[394874251,1764045077296,-500.0,0.00038904,8]
[394874252,1764045077306,-605.15731307,0.00038904,8]
[394874253,1764045077315,-500.0,0.00038904,8]
[394874254,1764045077325,-168.89547101,0.00038904,8]
[394874255,1764045077334,-510.39505011,0.00038904,8]
[394874256,1764045077343,-172.94713229,0.00038904,8]
[394874257,1764045077353,-527.28012646,0.00038904,8]
[394874258,1764045077362,-500.0,0.00038904,8]
[394874259,1764045077372,-500.0,0.00038904,8]
[394874260,1764045077381,-512.86923128,0.00038904,8]
[394874261,1764045077391,-533.45239641,0.00038904,8]
[394874262,1764045077401,-500.0,0.00038904,8]
[394874263,1764045077412,-500.0,0.00038904,8]
[394874264,1764045077422,-500.0,0.00038904,8]
[394874265,1764045077431,-500.0,0.00038904,8]
[394874266,1764045077440,-500.0,0.00038904,8]
[394874267,1764045077450,-500.0,0.00038904,8]
[394874268,1764045077459,-500.0,0.00038904,8]
[394874269,1764045077469,-508.53027398,0.00038904,8]
[394874270,1764045077478,-370.13913861,0.00038904,8]
[394874271,1764045077487,-500.0,0.00038904,8]
[394874272,1764045077496,-500.0,0.00038904,8]
[394874273,1764045077505,-537.01442919,0.00038904,8]
[394874274,1764045077514,-500.0,0.00038904,8]